[Event "*** Titled Tuesday Blitz"]
[Site "Chess.com"]
[Date "2021.02.16"]
[Round "1"]
[White "ChessFighter1975"]
[Black "Witik"]
[Result "0-1"]
[WhiteElo "2404"]
[BlackElo "2768"]
[TimeControl "180+1"]
[EndTime "10:08:24 PST"]
[Termination "Witik won by checkmate"]

1. d4 {[%clk 0:03:00.5]} 1... d5 {[%clk 0:02:56]} 2. c4 {[%clk 0:03:00.3]} 2...
e6 {[%clk 0:02:55.9]} 3. Nf3 {[%clk 0:03:00.3]} 3... c6 {[%clk 0:02:55.8]} 4. e3
{[%clk 0:03:00.4]} 4... Bd6 {[%clk 0:02:55.6]} 5. b3 {[%clk 0:02:59.9]} 5... f5
{[%clk 0:02:55.2]} 6. Bd3 {[%clk 0:02:57.1]} 6... Nf6 {[%clk 0:02:54.5]} 7. O-O
{[%clk 0:02:57.5]} 7... Qe7 {[%clk 0:02:54.1]} 8. a4 {[%clk 0:02:56.7]} 8... O-O
{[%clk 0:02:41.6]} 9. Ba3 {[%clk 0:02:57]} 9... b6 {[%clk 0:02:30.7]} 10. Ne5
{[%clk 0:02:43.9]} 10... Bb7 {[%clk 0:02:22.6]} 11. a5 {[%clk 0:02:19.1]} 11...
Na6 {[%clk 0:02:08.5]} 12. Qc1 {[%clk 0:01:22.1]} 12... c5 {[%clk 0:01:51.8]}
13. Nc3 {[%clk 0:01:18.9]} 13... Rac8 {[%clk 0:01:43.4]} 14. axb6 {[%clk
0:01:13]} 14... axb6 {[%clk 0:01:43.1]} 15. Nb5 {[%clk 0:00:54.4]} 15... Bb8
{[%clk 0:01:41.4]} 16. Qb2 {[%clk 0:00:46.3]} 16... Nb4 {[%clk 0:01:34.6]} 17.
Bxb4 {[%clk 0:00:43.5]} 17... cxb4 {[%clk 0:01:34.5]} 18. Na7 {[%clk 0:00:34.1]}
18... Rce8 {[%clk 0:01:10.1]} 19. Nac6 {[%clk 0:00:31.2]} 19... Bxc6 {[%clk
0:01:09.6]} 20. Nxc6 {[%clk 0:00:32.1]} 20... Bxh2+ {[%clk 0:01:10]} 21. Kxh2
{[%clk 0:00:30.3]} 21... Ng4+ {[%clk 0:01:10]} 22. Kg3 {[%clk 0:00:27.8]} 22...
Qg5 {[%clk 0:01:03.9]} 23. f4 {[%clk 0:00:27.9]} 23... Qg6 {[%clk 0:01:01.8]}
24. Kf3 {[%clk 0:00:28.2]} 24... Qh5 {[%clk 0:00:49.8]} 25. Ke2 {[%clk
0:00:20.5]} 25... Ne5+ {[%clk 0:00:39.4]} 26. Rf3 {[%clk 0:00:18.7]} 26... Nxc6
{[%clk 0:00:37.7]} 27. Ra6 {[%clk 0:00:16.7]} 27... Rf6 {[%clk 0:00:16.1]} 28.
Qa2 {[%clk 0:00:16.7]} 28... Rg6 {[%clk 0:00:15.2]} 29. Kf2 {[%clk 0:00:17.3]}
29... Qh4+ {[%clk 0:00:14.7]} 30. Kf1 {[%clk 0:00:15.9]} 30... Qh1+ {[%clk
0:00:14.5]} 31. Ke2 {[%clk 0:00:13.8]} 31... Rxg2+ {[%clk 0:00:14.3]} 32. Rf2
{[%clk 0:00:13]} 32... Rxf2+ {[%clk 0:00:14.6]} 33. Kxf2 {[%clk 0:00:13.9]}
33... Qh2+ {[%clk 0:00:12.1]} 34. Kf3 {[%clk 0:00:14.8]} 34... Qxa2 {[%clk
0:00:08.9]} 35. Rxa2 {[%clk 0:00:15.7]} 35... Na5 {[%clk 0:00:07.6]} 36. cxd5
{[%clk 0:00:14]} 36... exd5 {[%clk 0:00:07.5]} 37. Bc2 {[%clk 0:00:14.5]} 37...
Rc8 {[%clk 0:00:06.8]} 38. Ke2 {[%clk 0:00:14.5]} 38... Rc3 {[%clk 0:00:07]} 39.
Rb2 {[%clk 0:00:14.8]} 39... Kf7 {[%clk 0:00:06.7]} 40. Bxf5 {[%clk 0:00:14.8]}
40... g6 {[%clk 0:00:07]} 41. Bc2 {[%clk 0:00:14.6]} 41... Kf6 {[%clk
0:00:07.3]} 42. Kd2 {[%clk 0:00:13.9]} 42... h5 {[%clk 0:00:07.8]} 43. Bd1
{[%clk 0:00:14.1]} 43... h4 {[%clk 0:00:07.8]} 44. Bc2 {[%clk 0:00:13.8]} 44...
h3 {[%clk 0:00:07.8]} 45. Rb1 {[%clk 0:00:14.7]} 45... h2 {[%clk 0:00:07.9]} 46.
Rh1 {[%clk 0:00:14.7]} 46... Nxb3+ {[%clk 0:00:08.5]} 47. Bxb3 {[%clk
0:00:15.6]} 47... Rxb3 {[%clk 0:00:09.4]} 48. Kc2 {[%clk 0:00:15.9]} 48... Rxe3
{[%clk 0:00:08.8]} 49. Rxh2 {[%clk 0:00:15.5]} 49... Re4 {[%clk 0:00:09.5]} 50.
Rf2 {[%clk 0:00:15.9]} 50... Rxd4 {[%clk 0:00:09.9]} 51. Kb3 {[%clk 0:00:16.8]}
51... Kf5 {[%clk 0:00:08.4]} 52. Rf1 {[%clk 0:00:16.8]} 52... Rxf4 {[%clk
0:00:08.6]} 53. Rh1 {[%clk 0:00:16.3]} 53... g5 {[%clk 0:00:08.8]} 54. Rh8
{[%clk 0:00:16.9]} 54... g4 {[%clk 0:00:08.8]} 55. Rf8+ {[%clk 0:00:17.3]} 55...
Ke4 {[%clk 0:00:09.3]} 56. Rg8 {[%clk 0:00:18.2]} 56... Kf3 {[%clk 0:00:09.9]}
57. Rg7 {[%clk 0:00:17.3]} 57... g3 {[%clk 0:00:10.3]} 58. Rh7 {[%clk
0:00:17.5]} 58... g2 {[%clk 0:00:10]} 59. Rg7 {[%clk 0:00:17.8]} 59... Rg4
{[%clk 0:00:09.9]} 60. Rxg4 {[%clk 0:00:17.9]} 60... Kxg4 {[%clk 0:00:10.2]} 61.
Kxb4 {[%clk 0:00:18.8]} 61... g1=Q {[%clk 0:00:10.6]} 62. Kb5 {[%clk 0:00:19.7]}
62... Qc5+ {[%clk 0:00:10.6]} 63. Ka6 {[%clk 0:00:20.6]} 63... b5 {[%clk
0:00:09.5]} 64. Kb7 {[%clk 0:00:21.5]} 64... b4 {[%clk 0:00:09.8]} 65. Ka6
{[%clk 0:00:22.4]} 65... b3 {[%clk 0:00:08.5]} 66. Kb7 {[%clk 0:00:23.3]} 66...
b2 {[%clk 0:00:08.7]} 67. Ka6 {[%clk 0:00:24.2]} 67... d4 {[%clk 0:00:08.7]} 68.
Kb7 {[%clk 0:00:25.1]} 68... b1=Q+ {[%clk 0:00:08.8]} 69. Ka6 {[%clk 0:00:26]}
69... Qbb6# {[%clk 0:00:08.6]} 0-1

[Event "*** Titled Tuesday Blitz"]
[Site "Chess.com"]
[Date "2021.02.16"]
[Round "1"]
[White "Shahaliyev"]
[Black "Walter_White_Poland"]
[Result "1-0"]
[WhiteElo "2663"]
[BlackElo "2356"]
[TimeControl "180+1"]
[EndTime "10:08:26 PST"]
[Termination "Shahaliyev won by resignation"]

1. Nf3 {[%clk 0:02:58.3]} 1... d5 {[%clk 0:02:59.2]} 2. c4 {[%clk 0:02:57.6]}
2... d4 {[%clk 0:02:58.5]} 3. g3 {[%clk 0:02:56.9]} 3... Nc6 {[%clk 0:02:53.3]}
4. d3 {[%clk 0:02:57]} 4... a5 {[%clk 0:02:51.3]} 5. Bg2 {[%clk 0:02:57.1]} 5...
e5 {[%clk 0:02:51.2]} 6. O-O {[%clk 0:02:56.9]} 6... Nf6 {[%clk 0:02:51.2]} 7.
e3 {[%clk 0:02:56.7]} 7... dxe3 {[%clk 0:02:39.9]} 8. Bxe3 {[%clk 0:02:57.6]}
8... Be7 {[%clk 0:02:17.5]} 9. Nc3 {[%clk 0:02:53.2]} 9... O-O {[%clk
0:02:12.6]} 10. d4 {[%clk 0:02:53.5]} 10... exd4 {[%clk 0:02:11.8]} 11. Nxd4
{[%clk 0:02:54.4]} 11... Nxd4 {[%clk 0:02:11.9]} 12. Bxd4 {[%clk 0:02:55.3]}
12... c6 {[%clk 0:02:08.6]} 13. h3 {[%clk 0:02:37.7]} 13... Be6 {[%clk
0:02:08.1]} 14. b3 {[%clk 0:01:33.4]} 14... Qc7 {[%clk 0:02:07.4]} 15. Qe2
{[%clk 0:01:31]} 15... Rfe8 {[%clk 0:01:50.9]} 16. Rad1 {[%clk 0:01:28.7]} 16...
Bb4 {[%clk 0:01:13.1]} 17. Qc2 {[%clk 0:01:27.2]} 17... Nd7 {[%clk 0:01:04.1]}
18. Ne2 {[%clk 0:01:17.8]} 18... f6 {[%clk 0:00:45.6]} 19. Nf4 {[%clk
0:01:17.2]} 19... Bf7 {[%clk 0:00:45.6]} 20. Be4 {[%clk 0:01:14.8]} 20... g6
{[%clk 0:00:36.2]} 21. Bg2 {[%clk 0:01:10.4]} 21... Ne5 {[%clk 0:00:34.3]} 22.
Qb2 {[%clk 0:00:58.3]} 22... Rad8 {[%clk 0:00:30]} 23. Bc3 {[%clk 0:00:44.4]}
23... Bxc3 {[%clk 0:00:27.7]} 24. Qxc3 {[%clk 0:00:45.3]} 24... Qb6 {[%clk
0:00:24.5]} 25. Rxd8 {[%clk 0:00:27]} 25... Rxd8 {[%clk 0:00:24.1]} 26. Qc2
{[%clk 0:00:26.5]} 26... Qd4 {[%clk 0:00:20.8]} 27. Re1 {[%clk 0:00:26.4]} 27...
Qd2 {[%clk 0:00:20.2]} 28. Qxd2 {[%clk 0:00:24]} 28... Rxd2 {[%clk 0:00:21.1]}
29. Re2 {[%clk 0:00:24.9]} 29... Rxe2 {[%clk 0:00:20.9]} 30. Nxe2 {[%clk
0:00:25.8]} 30... Nd3 {[%clk 0:00:20]} 31. Nc3 {[%clk 0:00:25]} 31... Kf8 {[%clk
0:00:17.7]} 32. Kf1 {[%clk 0:00:25.3]} 32... Ke7 {[%clk 0:00:17.3]} 33. Ke2
{[%clk 0:00:25.8]} 33... Ne5 {[%clk 0:00:17.1]} 34. f4 {[%clk 0:00:25.2]} 34...
Nd7 {[%clk 0:00:17.2]} 35. Ke3 {[%clk 0:00:25.5]} 35... Nc5 {[%clk 0:00:13.4]}
36. Kd4 {[%clk 0:00:25.1]} 36... Kd6 {[%clk 0:00:13.6]} 37. g4 {[%clk
0:00:23.4]} 37... Ne6+ {[%clk 0:00:13.4]} 38. Ke3 {[%clk 0:00:23.8]} 38... Nc5
{[%clk 0:00:13.4]} 39. Bf3 {[%clk 0:00:22.9]} 39... g5 {[%clk 0:00:13.4]} 40.
fxg5 {[%clk 0:00:20.9]} 40... fxg5 {[%clk 0:00:12.7]} 41. Kd4 {[%clk 0:00:21.4]}
41... Ne6+ {[%clk 0:00:11.4]} 42. Ke3 {[%clk 0:00:21.9]} 42... Bg6 {[%clk
0:00:10]} 43. Be4 {[%clk 0:00:22.1]} 43... Bxe4 {[%clk 0:00:06.8]} 44. Kxe4
{[%clk 0:00:21.7]} 44... Kc5 {[%clk 0:00:06.1]} 45. Ke5 {[%clk 0:00:21.6]} 45...
Nc7 {[%clk 0:00:04.5]} 46. Ne4+ {[%clk 0:00:22]} 46... Kb4 {[%clk 0:00:04.6]}
47. Nxg5 {[%clk 0:00:21.9]} 47... Ka3 {[%clk 0:00:04.5]} 48. Nxh7 {[%clk
0:00:22.4]} 48... Kxa2 {[%clk 0:00:05]} 49. g5 {[%clk 0:00:23]} 49... Kxb3
{[%clk 0:00:04.5]} 50. g6 {[%clk 0:00:22.7]} 50... Ne8 {[%clk 0:00:04.7]} 51.
Nf6 {[%clk 0:00:19.3]} 51... Ng7 {[%clk 0:00:03.9]} 52. Ne4 {[%clk 0:00:16.2]}
52... a4 {[%clk 0:00:03.5]} 53. Nc5+ {[%clk 0:00:16.4]} 53... Kb4 {[%clk
0:00:03.1]} 54. Nxa4 {[%clk 0:00:16.6]} 54... Kxa4 {[%clk 0:00:03.6]} 55. Kf6
{[%clk 0:00:17.5]} 55... Nh5+ {[%clk 0:00:04]} 56. Kg5 {[%clk 0:00:17.2]} 56...
Ng7 {[%clk 0:00:04.3]} 57. h4 {[%clk 0:00:17.7]} 57... b5 {[%clk 0:00:03.4]} 58.
cxb5 {[%clk 0:00:18.3]} 58... cxb5 {[%clk 0:00:03.5]} 59. h5 {[%clk 0:00:19.2]}
59... b4 {[%clk 0:00:03.3]} 60. h6 {[%clk 0:00:19.7]} 60... Ne6+ {[%clk
0:00:03.6]} 61. Kf6 {[%clk 0:00:20.3]} 61... b3 {[%clk 0:00:04.1]} 62. h7 {[%clk
0:00:20.4]} 62... b2 {[%clk 0:00:03.8]} 63. h8=Q {[%clk 0:00:20.8]} 63... b1=Q
{[%clk 0:00:03.9]} 64. Qa8+ {[%clk 0:00:21.5]} 64... Kb3 {[%clk 0:00:03.5]} 65.
Qb7+ {[%clk 0:00:22.1]} 65... Kc2 {[%clk 0:00:03.4]} 66. Qxb1+ {[%clk 0:00:23]}
66... Kxb1 {[%clk 0:00:03.9]} 67. Kxe6 {[%clk 0:00:23.6]} 1-0

[Event "*** Titled Tuesday Blitz"]
[Site "Chess.com"]
[Date "2021.02.16"]
[Round "1"]
[White "Loy_Konstantin"]
[Black "wnstop"]
[Result "0-1"]
[WhiteElo "2383"]
[BlackElo "2713"]
[TimeControl "180+1"]
[EndTime "10:08:29 PST"]
[Termination "wnstop won on time"]

1. e4 {[%clk 0:02:57.7]} 1... d5 {[%clk 0:02:52.6]} 2. exd5 {[%clk 0:02:57.3]}
2... Qxd5 {[%clk 0:02:53.5]} 3. Nc3 {[%clk 0:02:57.4]} 3... Qd8 {[%clk 0:02:52]}
4. d4 {[%clk 0:02:57.1]} 4... Nf6 {[%clk 0:02:52]} 5. Bc4 {[%clk 0:02:56.8]}
5... a6 {[%clk 0:02:47.2]} 6. Nf3 {[%clk 0:02:51.1]} 6... c5 {[%clk 0:02:40.5]}
7. dxc5 {[%clk 0:02:41.8]} 7... Qxd1+ {[%clk 0:02:39]} 8. Nxd1 {[%clk 0:02:42]}
8... e6 {[%clk 0:02:34.8]} 9. b4 {[%clk 0:02:15.8]} 9... b6 {[%clk 0:02:14.4]}
10. cxb6 {[%clk 0:02:08.8]} 10... Bxb4+ {[%clk 0:02:13.9]} 11. Bd2 {[%clk
0:02:09.3]} 11... Bxd2+ {[%clk 0:02:03.6]} 12. Nxd2 {[%clk 0:02:08.3]} 12...
Nbd7 {[%clk 0:02:03.4]} 13. Rb1 {[%clk 0:02:03.9]} 13... Rb8 {[%clk 0:02:03.1]}
14. Nc3 {[%clk 0:01:49.3]} 14... Rxb6 {[%clk 0:01:59.3]} 15. Rxb6 {[%clk
0:01:38.2]} 15... Nxb6 {[%clk 0:02:00.2]} 16. O-O {[%clk 0:01:33.1]} 16... Ke7
{[%clk 0:01:57.6]} 17. Rb1 {[%clk 0:01:29.1]} 17... Rd8 {[%clk 0:01:37.9]} 18.
Bd3 {[%clk 0:01:25]} 18... Nbd5 {[%clk 0:01:34.1]} 19. Nxd5+ {[%clk 0:01:13.9]}
19... Nxd5 {[%clk 0:01:35]} 20. g3 {[%clk 0:01:10.7]} 20... Nc3 {[%clk
0:01:22.2]} 21. Rb2 {[%clk 0:00:57.5]} 21... e5 {[%clk 0:01:20.4]} 22. Ne4
{[%clk 0:00:48.5]} 22... Nxe4 {[%clk 0:00:56.6]} 23. Bxe4 {[%clk 0:00:49.4]}
23... f5 {[%clk 0:00:18.6]} 24. Bd3 {[%clk 0:00:47]} 24... e4 {[%clk 0:00:17.4]}
25. Be2 {[%clk 0:00:45.1]} 25... Rd2 {[%clk 0:00:17.6]} 26. Kf1 {[%clk
0:00:41.7]} 26... g5 {[%clk 0:00:17.6]} 27. Ke1 {[%clk 0:00:41.5]} 27... Rd6
{[%clk 0:00:18.1]} 28. Rb8 {[%clk 0:00:37.2]} 28... Rc6 {[%clk 0:00:18.3]} 29.
Kd2 {[%clk 0:00:31.2]} 29... Kf6 {[%clk 0:00:18.4]} 30. c4 {[%clk 0:00:24.2]}
30... Ke5 {[%clk 0:00:18.3]} 31. Kc3 {[%clk 0:00:23.8]} 31... f4 {[%clk
0:00:18.5]} 32. gxf4+ {[%clk 0:00:17.9]} 32... gxf4 {[%clk 0:00:19.4]} 33. Rb1
{[%clk 0:00:16.8]} 33... Rh6 {[%clk 0:00:17.1]} 34. Rh1 {[%clk 0:00:13.3]} 34...
Rh3+ {[%clk 0:00:16.6]} 35. Kb4 {[%clk 0:00:12.9]} 35... f3 {[%clk 0:00:16.6]}
36. Bd1 {[%clk 0:00:12.2]} 36... e3 {[%clk 0:00:13]} 37. fxe3 {[%clk 0:00:10.9]}
37... f2 {[%clk 0:00:13.4]} 38. Rf1 {[%clk 0:00:04.4]} 38... Rxh2 {[%clk
0:00:12.9]} 39. c5 {[%clk 0:00:04]} 39... Bh3 {[%clk 0:00:13.1]} 40. Be2 {[%clk
0:00:04.3]} 40... Bxf1 {[%clk 0:00:13.2]} 41. Bxf1 {[%clk 0:00:05.2]} 41... Rh1
{[%clk 0:00:13.8]} 42. Bxa6 {[%clk 0:00:05.4]} 42... Rb1+ {[%clk 0:00:12.2]} 43.
Kc3 {[%clk 0:00:03.7]} 43... Rc1+ {[%clk 0:00:10.3]} 44. Kd2 {[%clk 0:00:03.5]}
44... Rxc5 {[%clk 0:00:10.7]} 45. Ke2 {[%clk 0:00:03.2]} 45... Rc2+ {[%clk
0:00:11.2]} 46. Kf1 {[%clk 0:00:03.7]} 46... Rxa2 {[%clk 0:00:11.3]} 47. Be2
{[%clk 0:00:04.2]} 47... Ra7 {[%clk 0:00:05.2]} 48. Kxf2 {[%clk 0:00:05.1]}
48... Rg7 {[%clk 0:00:05.6]} 49. Bd3 {[%clk 0:00:04.8]} 49... h6 {[%clk
0:00:05]} 50. Kf3 {[%clk 0:00:04.8]} 50... Kf6 {[%clk 0:00:05.1]} 51. Be4 {[%clk
0:00:04.6]} 51... Kg5 {[%clk 0:00:04.6]} 52. Bd5 {[%clk 0:00:04]} 52... Kh4
{[%clk 0:00:04.9]} 53. e4 {[%clk 0:00:04.6]} 53... Kg5 {[%clk 0:00:04.2]} 54. e5
{[%clk 0:00:04]} 54... Kf5 {[%clk 0:00:04]} 55. e6 {[%clk 0:00:04.2]} 55... Ke5
{[%clk 0:00:03.5]} 56. Bb3 {[%clk 0:00:04.6]} 56... h5 {[%clk 0:00:03.8]} 57.
Ke3 {[%clk 0:00:03.3]} 57... h4 {[%clk 0:00:03.9]} 58. Kf2 {[%clk 0:00:02.6]}
58... Kf6 {[%clk 0:00:03.4]} 59. Bd5 {[%clk 0:00:01.7]} 59... h3 {[%clk
0:00:03.5]} 0-1

[Event "*** Titled Tuesday Blitz"]
[Site "Chess.com"]
[Date "2021.02.16"]
[Round "1"]
[White "kamilianin235"]
[Black "Kislov_Oleg"]
[Result "0-1"]
[WhiteElo "2152"]
[BlackElo "2515"]
[TimeControl "180+1"]
[EndTime "10:08:29 PST"]
[Termination "Kislov_Oleg won on time"]

1. e4 {[%clk 0:02:59.8]} 1... e6 {[%clk 0:02:59.5]} 2. d4 {[%clk 0:02:58.2]}
2... d5 {[%clk 0:02:59.8]} 3. Nd2 {[%clk 0:02:57.1]} 3... Nf6 {[%clk 0:02:59.5]}
4. e5 {[%clk 0:02:56.2]} 4... Nfd7 {[%clk 0:02:59.6]} 5. Bd3 {[%clk 0:02:55.9]}
5... c5 {[%clk 0:02:59.7]} 6. c3 {[%clk 0:02:55.7]} 6... Nc6 {[%clk 0:02:59.5]}
7. Ne2 {[%clk 0:02:55.5]} 7... cxd4 {[%clk 0:02:59.5]} 8. cxd4 {[%clk
0:02:54.7]} 8... f6 {[%clk 0:02:59.5]} 9. exf6 {[%clk 0:02:53.8]} 9... Nxf6
{[%clk 0:02:57.3]} 10. Nf3 {[%clk 0:02:51.9]} 10... Bd6 {[%clk 0:02:57.1]} 11.
O-O {[%clk 0:02:48]} 11... O-O {[%clk 0:02:57]} 12. Nc3 {[%clk 0:02:39.4]} 12...
Kh8 {[%clk 0:02:33.2]} 13. Re1 {[%clk 0:02:20.2]} 13... Bd7 {[%clk 0:02:10.6]}
14. h3 {[%clk 0:02:15.9]} 14... a6 {[%clk 0:02:09.8]} 15. Be3 {[%clk 0:02:13.2]}
15... Rc8 {[%clk 0:02:09.3]} 16. Rc1 {[%clk 0:02:10.4]} 16... Bb8 {[%clk
0:02:01.7]} 17. Na4 {[%clk 0:01:56.1]} 17... Ne4 {[%clk 0:01:56.6]} 18. Bxe4
{[%clk 0:01:49.5]} 18... dxe4 {[%clk 0:01:56.3]} 19. Ng5 {[%clk 0:01:50.1]}
19... Qc7 {[%clk 0:01:44]} 20. Qh5 {[%clk 0:01:45.1]} 20... Qh2+ {[%clk
0:01:36.7]} 21. Kf1 {[%clk 0:01:44.1]} 21... h6 {[%clk 0:01:32.3]} 22. Nb6
{[%clk 0:01:20.5]} 22... Nxd4 {[%clk 0:01:21.9]} 23. Bxd4 {[%clk 0:01:15.6]}
23... Bb5+ {[%clk 0:01:21.6]} 24. Nc4 {[%clk 0:01:13.6]} 24... e5 {[%clk
0:00:48.6]} 25. b3 {[%clk 0:00:38.1]} 25... exd4 {[%clk 0:00:43]} 26. Nf7+
{[%clk 0:00:38.4]} 26... Kh7 {[%clk 0:00:20.2]} 27. Ng5+ {[%clk 0:00:35.5]}
27... Kh8 {[%clk 0:00:19.7]} 28. Nxe4 {[%clk 0:00:34.9]} 28... Qh1+ {[%clk
0:00:13.5]} 29. Ke2 {[%clk 0:00:34]} 29... Qxg2 {[%clk 0:00:14.2]} 30. Qg4
{[%clk 0:00:33.8]} 30... Qxg4+ {[%clk 0:00:11.4]} 31. hxg4 {[%clk 0:00:33.9]}
31... Rce8 {[%clk 0:00:10.3]} 32. Kd3 {[%clk 0:00:33.4]} 32... Rf3+ {[%clk
0:00:06.8]} 33. Kd2 {[%clk 0:00:31.8]} 33... Bc6 {[%clk 0:00:06.3]} 34. Ned6
{[%clk 0:00:30.1]} 34... Rxf2+ {[%clk 0:00:05.9]} 35. Kd3 {[%clk 0:00:28.8]}
35... Ref8 {[%clk 0:00:05.4]} 36. Kxd4 {[%clk 0:00:26.1]} 36... R2f4+ {[%clk
0:00:05.3]} 37. Kd3 {[%clk 0:00:24.9]} 37... Rxg4 {[%clk 0:00:05.8]} 38. Rf1
{[%clk 0:00:23.6]} 38... Rd8 {[%clk 0:00:05.2]} 39. Kc3 {[%clk 0:00:12.1]} 39...
Bxd6 {[%clk 0:00:05.2]} 40. Rcd1 {[%clk 0:00:11.9]} 40... Rg6 {[%clk 0:00:03.3]}
41. Kc2 {[%clk 0:00:09.4]} 41... Kh7 {[%clk 0:00:03.5]} 42. Ne5 {[%clk
0:00:08.6]} 42... Bxe5 {[%clk 0:00:03.7]} 43. Rxd8 {[%clk 0:00:07.4]} 43... Be4+
{[%clk 0:00:04.6]} 44. Kc1 {[%clk 0:00:07]} 44... Rg2 {[%clk 0:00:04.7]} 45. Re8
{[%clk 0:00:06.3]} 45... Bf4+ {[%clk 0:00:04.9]} 46. Kd1 {[%clk 0:00:05.5]}
46... Bc6 {[%clk 0:00:04.4]} 47. Rxf4 {[%clk 0:00:03.8]} 47... Bxe8 {[%clk
0:00:03.9]} 48. Re4 {[%clk 0:00:02.8]} 48... Bc6 {[%clk 0:00:04.1]} 49. Re3
{[%clk 0:00:01.9]} 49... Rxa2 {[%clk 0:00:04.2]} 50. Ke1 {[%clk 0:00:02.2]}
50... Rh2 {[%clk 0:00:04.1]} 51. Kf1 {[%clk 0:00:02.2]} 51... h5 {[%clk
0:00:04.6]} 52. Ke1 {[%clk 0:00:02]} 52... Rh4 {[%clk 0:00:04.7]} 53. Kd1 {[%clk
0:00:02.9]} 53... Rg4 {[%clk 0:00:05.1]} 54. Kc1 {[%clk 0:00:03.8]} 54... h4
{[%clk 0:00:05.7]} 55. Kb2 {[%clk 0:00:04.1]} 55... Rg3 {[%clk 0:00:06.2]} 56.
Re4 {[%clk 0:00:03.9]} 56... Bxe4 {[%clk 0:00:05.7]} 57. Ka3 {[%clk 0:00:04.8]}
57... h3 {[%clk 0:00:05.8]} 58. Kb4 {[%clk 0:00:05.7]} 58... h2 {[%clk
0:00:06.3]} 59. Ka5 {[%clk 0:00:06.6]} 59... h1=Q {[%clk 0:00:06.6]} 60. Kb6
{[%clk 0:00:07.5]} 60... Qg1+ {[%clk 0:00:06.2]} 0-1

[Event "*** Titled Tuesday Blitz"]
[Site "Chess.com"]
[Date "2021.02.16"]
[Round "1"]
[White "WanderingPuppet"]
[Black "TigrVShlyape"]
[Result "0-1"]
[WhiteElo "2459"]
[BlackElo "2919"]
[TimeControl "180+1"]
[EndTime "10:08:30 PST"]
[Termination "TigrVShlyape won on time"]

1. e4 {[%clk 0:02:59.3]} 1... e5 {[%clk 0:02:59]} 2. Nf3 {[%clk 0:02:59.2]} 2...
Nc6 {[%clk 0:02:59.4]} 3. Bb5 {[%clk 0:02:58.9]} 3... a6 {[%clk 0:02:58.7]} 4.
Ba4 {[%clk 0:02:58.8]} 4... Nf6 {[%clk 0:02:59.3]} 5. O-O {[%clk 0:02:59]} 5...
Be7 {[%clk 0:02:59.8]} 6. Re1 {[%clk 0:02:59.2]} 6... b5 {[%clk 0:02:59.7]} 7.
Bb3 {[%clk 0:02:59.7]} 7... d6 {[%clk 0:03:00.2]} 8. a4 {[%clk 0:02:59.8]} 8...
Rb8 {[%clk 0:02:52.8]} 9. axb5 {[%clk 0:02:59.4]} 9... axb5 {[%clk 0:02:52.3]}
10. c3 {[%clk 0:02:59.6]} 10... O-O {[%clk 0:02:52.1]} 11. d4 {[%clk 0:02:56.5]}
11... Bg4 {[%clk 0:02:43.8]} 12. d5 {[%clk 0:02:53.9]} 12... Qd7 {[%clk
0:02:34.3]} 13. dxc6 {[%clk 0:02:51.8]} 13... Qxc6 {[%clk 0:02:34.6]} 14. h3
{[%clk 0:02:49.2]} 14... Bh5 {[%clk 0:02:32.6]} 15. Bg5 {[%clk 0:02:46]} 15...
Qb6 {[%clk 0:02:22.5]} 16. Nbd2 {[%clk 0:02:41.3]} 16... Rfe8 {[%clk 0:02:19.7]}
17. Nf1 {[%clk 0:02:39.3]} 17... Nd7 {[%clk 0:02:17.8]} 18. Bxe7 {[%clk
0:02:36.1]} 18... Rxe7 {[%clk 0:02:17.4]} 19. Ng3 {[%clk 0:02:35.9]} 19... Bxf3
{[%clk 0:02:11.9]} 20. Qxf3 {[%clk 0:02:35.4]} 20... g6 {[%clk 0:02:11.7]} 21.
Qg4 {[%clk 0:02:27.7]} 21... Kf8 {[%clk 0:01:57]} 22. Qh4 {[%clk 0:02:20.7]}
22... h5 {[%clk 0:01:44.7]} 23. Qg5 {[%clk 0:02:15.6]} 23... Ke8 {[%clk
0:01:44]} 24. Nf1 {[%clk 0:02:00.2]} 24... Nc5 {[%clk 0:01:38.9]} 25. Bc2 {[%clk
0:01:51.5]} 25... Ne6 {[%clk 0:01:36.7]} 26. Qf6 {[%clk 0:01:40.9]} 26... c6
{[%clk 0:01:33.2]} 27. Ne3 {[%clk 0:01:32.7]} 27... Qc7 {[%clk 0:01:22.4]} 28.
Red1 {[%clk 0:01:23.8]} 28... Rd7 {[%clk 0:01:21.3]} 29. b4 {[%clk 0:01:16.2]}
29... Qd8 {[%clk 0:01:20.7]} 30. Qh8+ {[%clk 0:01:06.6]} 30... Ke7 {[%clk
0:01:20.1]} 31. Qh6 {[%clk 0:00:54.5]} 31... Qh8 {[%clk 0:01:14.4]} 32. Qxh8
{[%clk 0:00:53.4]} 32... Rxh8 {[%clk 0:01:15.1]} 33. Ra6 {[%clk 0:00:50.2]}
33... Rc7 {[%clk 0:01:11.5]} 34. g3 {[%clk 0:00:49.5]} 34... h4 {[%clk
0:01:11.1]} 35. Kg2 {[%clk 0:00:46.7]} 35... Ng5 {[%clk 0:01:02.1]} 36. f4
{[%clk 0:00:36.5]} 36... Ne6 {[%clk 0:01:01.8]} 37. f5 {[%clk 0:00:34]} 37...
Ng5 {[%clk 0:01:02]} 38. g4 {[%clk 0:00:34.1]} 38... Rb8 {[%clk 0:00:54.6]} 39.
Rda1 {[%clk 0:00:30.4]} 39... Nh7 {[%clk 0:00:51.1]} 40. Ra7 {[%clk 0:00:27]}
40... Rbb7 {[%clk 0:00:48.1]} 41. Rxb7 {[%clk 0:00:26.7]} 41... Rxb7 {[%clk
0:00:46.4]} 42. Ra6 {[%clk 0:00:26]} 42... Rc7 {[%clk 0:00:44.5]} 43. Bb3 {[%clk
0:00:22.9]} 43... Ng5 {[%clk 0:00:40.1]} 44. Bc2 {[%clk 0:00:21.4]} 44... Nh7
{[%clk 0:00:39.9]} 45. Nd1 {[%clk 0:00:19.4]} 45... Kf6 {[%clk 0:00:36.6]} 46.
Nf2 {[%clk 0:00:17.5]} 46... Kg5 {[%clk 0:00:34.1]} 47. Kf3 {[%clk 0:00:16.9]}
47... Nf6 {[%clk 0:00:34]} 48. Bd3 {[%clk 0:00:15.2]} 48... d5 {[%clk
0:00:33.8]} 49. Rb6 {[%clk 0:00:12.3]} 49... c5 {[%clk 0:00:29.4]} 50. Rxb5
{[%clk 0:00:08.5]} 50... cxb4 {[%clk 0:00:25.6]} 51. cxb4 {[%clk 0:00:08.5]}
51... dxe4+ {[%clk 0:00:14]} 52. Bxe4 {[%clk 0:00:04.8]} 52... Rc3+ {[%clk
0:00:13.2]} 53. Kg2 {[%clk 0:00:03.7]} 53... Kf4 {[%clk 0:00:12.5]} 54. Bb7
{[%clk 0:00:01.9]} 54... e4 {[%clk 0:00:12.7]} 55. Rc5 {[%clk 0:00:01.6]} 55...
Rb3 {[%clk 0:00:12.5]} 56. Rc4 {[%clk 0:00:01.2]} 56... Rb2 {[%clk 0:00:12.9]}
57. Kf1 {[%clk 0:00:01.5]} 57... Kf3 {[%clk 0:00:10.2]} 58. Nxe4 {[%clk
0:00:01.8]} 58... Rb1+ {[%clk 0:00:10.1]} 0-1